bitfinex/quotes_BTCUSD_20241023
["timestamp","ask_amount","ask_price","bid_price","bid_amount"]
[1729695157370,0.150251,66555.0,66553.0,0.005]
[1729695157371,0.150252,66555.0,66553.0,0.005]
[1729695157582,0.150252,66555.0,66554.0,0.005]
[1729695157806,0.150252,66555.0,66554.0,0.01]
[1729695158019,0.15050381,66557.0,66554.0,0.01]
[1729695158237,0.15050381,66557.0,66554.0,0.18306045]
[1729695158451,0.15025,66556.0,66554.0,0.18306045]
[1729695158872,0.15050381,66557.0,66554.0,0.01]
[1729695159084,0.15025,66556.0,66554.0,0.01]
[1729695159764,0.15050381,66557.0,66553.0,0.005]
[1729695159976,0.150251,66556.0,66553.0,0.005]
[1729695160206,0.15050381,66557.0,66554.0,0.01]
[1729695160207,0.30075081,66557.0,66554.0,0.01]
[1729695160458,0.15050381,66557.0,66554.0,0.01]
[1729695160674,0.15025,66556.0,66554.0,0.01]
[1729695161298,0.15050381,66557.0,66554.0,0.01]
[1729695161534,0.150249,66556.0,66554.0,0.01]
[1729695161978,0.150251,66555.0,66554.0,0.01]
[1729695162195,0.150251,66555.0,66553.0,0.015]
[1729695162417,0.150251,66555.0,66554.0,0.01]
[1729695162651,0.30075181,66557.0,66554.0,0.01]
[1729695162896,0.15050381,66557.0,66554.0,0.01]
[1729695163117,0.150251,66555.0,66554.0,0.01]
[1729695164451,0.19498569,66555.0,66554.0,0.01]
[1729695164668,0.19505766,66555.0,66554.0,0.01]
[1729695165091,0.34556147,66555.0,66554.0,0.005]
[1729695165319,0.34556147,66555.0,66551.0,0.0965]
[1729695165320,0.21771381,66555.0,66551.0,0.005]
[1729695165592,0.150258,66552.0,66551.0,0.005]
[1729695165814,0.49559508,66553.0,66552.0,0.005]
[1729695166029,0.150258,66552.0,66551.0,0.005]
[1729695166269,0.300527,66550.0,66546.0,0.015825]
[1729695166498,0.300527,66550.0,66546.0,0.005825]
[1729695166499,0.150269,66547.0,66546.0,0.005825]
[1729695166926,0.150269,66547.0,66546.0,0.000825]
[1729695167151,0.150269,66547.0,66546.0,0.005825]
[1729695167152,0.19509608,66547.0,66546.0,0.005825]
[1729695167366,0.150269,66547.0,66546.0,0.005825]
[1729695167583,0.217479,66547.0,66546.0,0.005825]
[1729695167794,0.40539544,66547.0,66546.0,0.005825]
[1729695168441,0.31578211,66547.0,66546.0,0.005825]
[1729695168869,0.46628592,66547.0,66546.0,0.000825]
[1729695169547,0.150281,66542.0,66541.0,0.000849]
[1729695169798,1.16101092,66542.0,66541.0,0.000849]
[1729695170020,1.16101092,66542.0,66531.0,0.000849]
[1729695170021,0.150303,66532.0,66531.0,0.000849]
[1729695170247,0.51311202,66532.0,66531.0,0.000849]
[1729695170472,0.86737247,66532.0,66531.0,0.000849]
[1729695170692,1.16926526,66532.0,66531.0,0.000849]
[1729695170940,1.01876145,66532.0,66531.0,0.000849]
[1729695171420,0.86737247,66532.0,66531.0,0.000849]
[1729695171685,0.87330116,66532.0,66531.0,0.000849]
[1729695173429,0.64751992,66532.0,66531.0,0.000849]
[1729695173672,0.64736623,66532.0,66531.0,0.000849]
[1729695174192,0.82042668,66532.0,66531.0,0.000849]
[1729695175414,0.9547102,66532.0,66531.0,0.000849]
[1729695176407,0.82042668,66532.0,66531.0,0.000849]
[1729695178309,0.82013068,66532.0,66531.0,0.000849]
[1729695179428,0.97063449,66532.0,66531.0,0.000849]
[1729695179790,0.82033149,66532.0,66529.0,0.01819061]
[1729695180010,0.250308,66530.0,66529.0,0.01819061]
[1729695180245,0.56587523,66530.0,66529.0,0.01819061]
[1729695180691,0.56581365,66530.0,66529.0,0.01819061]
[1729695180939,0.8094811,66530.0,66529.0,0.01819061]
[1729695181177,0.7570641,66530.0,66529.0,0.01819061]
[1729695181410,0.58400365,66530.0,66529.0,0.01819061]
[1729695181654,0.8911248,66530.0,66529.0,0.01819061]
[1729695182590,0.75704422,66530.0,66529.0,0.01819061]
[1729695182827,0.150314,66527.0,66517.0,0.01]
[1729695183047,0.56579977,66527.0,66517.0,0.01]
[1729695183269,0.73886022,66527.0,66517.0,0.01]
[1729695184210,0.56579977,66527.0,66517.0,0.01]
[1729695184433,0.73886022,66527.0,66517.0,0.01]
[1729695184666,0.73886022,66527.0,66511.0,0.175]
[1729695184667,0.17306045,66515.0,66511.0,0.175]
[1729695185125,0.32340245,66515.0,66511.0,0.175]
[1729695185617,0.150345,66514.0,66511.0,0.175]
[1729695185865,0.04465581,66521.0,66511.0,0.175]
[1729695186094,0.32340045,66516.0,66512.0,0.018]
[1729695186318,0.150344,66514.0,66511.0,0.175]
[1729695186568,0.17306045,66516.0,66511.0,0.175]
[1729695186819,0.32340145,66516.0,66511.0,0.175]
[1729695187048,0.32290145,66516.0,66511.0,0.175]
[1729695187289,0.150342,66515.0,66511.0,0.175]
[1729695187512,0.17256045,66516.0,66511.0,0.175]
[1729695187731,0.32290145,66516.0,66511.0,0.175]
[1729695187988,0.17256045,66516.0,66511.0,0.175]
[1729695188219,0.0111539,66515.0,66511.0,0.175]
[1729695188447,0.32290045,66516.0,66511.0,0.175]
[1729695188448,0.01115511,66516.0,66515.0,0.155342]
[1729695188672,0.06697128,66526.0,66516.0,0.005]
[1729695188673,0.150326,66522.0,66516.0,0.005]
[1729695188901,0.22547745,66518.0,66516.0,0.005]
[1729695189126,0.01115597,66524.0,66516.0,0.155339]
[1729695189127,0.01115597,66517.0,66516.0,0.155339]
[1729695189375,0.15033,66521.0,66516.0,0.005]
[1729695189602,0.23663342,66521.0,66517.0,0.1697]
[1729695189828,0.150333,66519.0,66517.0,0.1697]
[1729695190265,0.16148697,66520.0,66517.0,0.1697]
[1729695190494,0.01115597,66520.0,66517.0,0.18717]
[1729695190724,0.15050381,66524.0,66517.0,0.18717]
[1729695190725,0.15033,66521.0,66517.0,0.18717]
[1729695190965,0.01115597,66521.0,66517.0,0.18717]
[1729695191259,0.27009865,66528.0,66522.0,0.005]
[1729695191260,0.01115597,66524.0,66522.0,0.005]
[1729695191425,0.01115597,66524.0,66523.0,0.09400607]
[1729695191655,0.01115597,66527.0,66523.0,0.24432907]
[1729695191882,0.01115597,66527.0,66523.0,0.09400607]
[1729695192126,0.150321,66524.0,66523.0,0.091]
[1729695192366,0.150321,66524.0,66517.0,0.0817]
[1729695192367,0.150335,66518.0,66517.0,0.0817]
[1729695192597,0.15050381,66524.0,66522.0,0.005]
[1729695192818,0.300648,66523.0,66520.0,0.005]
[1729695193048,0.16167814,66524.0,66517.0,0.0767]
[1729695193049,0.150335,66518.0,66517.0,0.0767]
[1729695193278,0.150326,66522.0,66521.0,0.005]
[1729695193519,0.01117986,66523.0,66520.0,0.005]
[1729695193752,0.14998749,66524.0,66517.0,0.0767]
[1729695193753,0.01117986,66522.0,66517.0,0.0767]
[1729695193984,0.01117986,66523.0,66517.0,0.0767]
[1729695194208,0.01118042,66522.0,66520.0,0.005]
[1729695194441,0.150323,66523.0,66521.0,0.005]
[1729695194673,0.45063049,66524.0,66520.0,0.005]
[1729695194674,0.150328,66521.0,66520.0,0.005]
[1729695194905,0.1615154,66521.0,66520.0,0.005]
[1729695195188,0.1615154,66521.0,66517.0,0.0817]
[1729695195189,0.300662,66520.0,66517.0,0.0817]
[1729695195448,0.300662,66520.0,66519.0,0.005]
[1729695195449,0.15033,66520.0,66519.0,0.005]
[1729695195935,0.16152568,66520.0,66519.0,0.005]
[1729695196368,0.01119568,66520.0,66518.0,0.005]
[1729695196567,0.01119568,66519.0,66518.0,0.005]
[1729695197285,0.01119568,66519.0,66502.0,0.00579784]
[1729695197286,0.150348,66513.0,66511.0,0.077724]
[1729695197506,0.30067,66518.0,66513.0,0.005]
[1729695197736,0.01121135,66517.0,66513.0,0.005]
[1729695197958,0.16155035,66516.0,66513.0,0.005]
[1729695198186,0.16155335,66515.0,66513.0,0.005]
[1729695198402,0.01121135,66514.0,66513.0,0.005]
[1729695198626,0.3870328,66514.0,66513.0,0.005]
[1729695198903,0.150347,66513.0,66511.0,0.082724]
[1729695199126,0.150344,66514.0,66513.0,0.005]
[1729695199342,0.16158033,66514.0,66513.0,0.005]
[1729695199558,0.16158033,66514.0,66511.0,0.07605787]
[1729695199773,0.16158233,66513.0,66511.0,0.07605787]
[1729695199990,0.01123633,66512.0,66511.0,0.07605787]
[1729695202648,0.16158433,66512.0,66511.0,0.07605787]
[1729695202911,0.01123633,66512.0,66511.0,0.07605787]
[1729695203386,0.01123684,66512.0,66511.0,0.07605787]
[1729695203841,0.01123689,66512.0,66511.0,0.07605787]
[1729695207184,0.01123689,66512.0,66511.0,0.22640887]
[1729695207413,0.01123689,66512.0,66511.0,0.07605787]
[1729695209183,0.01123689,66512.0,66511.0,0.22640887]
[1729695209850,0.01123689,66512.0,66511.0,0.07605787]
[1729695210039,0.01123689,66512.0,66511.0,0.22640887]
[1729695212285,0.05598198,66512.0,66511.0,0.22640887]
[1729695212505,0.01123689,66512.0,66511.0,0.22640887]
[1729695212938,0.07851846,66512.0,66511.0,0.22941548]
[1729695213159,0.01123689,66512.0,66511.0,0.22640887]
[1729695213381,0.08949019,66513.0,66512.0,0.150348]
[1729695213992,0.01123857,66512.0,66511.0,0.37758187]
[1729695214208,0.2555693,66512.0,66511.0,0.52793287]
[1729695214423,0.11226105,66512.0,66511.0,0.52793287]
[1729695215080,0.13471326,66518.0,66511.0,0.52793287]
[1729695215081,0.04493973,66513.0,66512.0,0.01]
[1729695215311,0.04493973,66517.0,66516.0,0.01]
[1729695215576,0.11226105,66522.0,66519.0,0.160332]
[1729695215577,0.08987105,66521.0,66519.0,0.160332]
[1729695215803,0.04496913,66522.0,66521.0,0.160328]
[1729695216034,0.04496913,66523.0,66522.0,0.328426]
[1729695216264,0.04661713,66524.0,66523.0,0.155323]
[1729695216500,0.04661713,66524.0,66523.0,0.16332891]
[1729695216724,0.0128809,66524.0,66523.0,0.16332891]
[1729695216956,0.0128809,66524.0,66523.0,0.25632891]
[1729695217180,0.0128809,66524.0,66523.0,0.328323]
[1729695217427,0.0128809,66524.0,66523.0,0.318323]
[1729695217868,0.0128809,66524.0,66523.0,0.328323]
[1729695218137,0.0128809,66524.0,66523.0,0.323323]
[1729695218354,0.0128809,66524.0,66523.0,0.328323]
[1729695218581,0.001648,66524.0,66523.0,0.47882681]
[1729695219258,0.001648,66524.0,66523.0,0.328323]
[1729695222192,0.001648,66524.0,66523.0,0.330323]
[1729695222627,0.001648,66524.0,66523.0,0.328323]
[1729695223340,0.001648,66524.0,66523.0,0.330323]
[1729695223556,0.001648,66524.0,66523.0,0.328323]
[1729695226442,0.001648,66524.0,66523.0,0.50196378]
[1729695228428,0.001648,66524.0,66523.0,0.328323]
[1729695228659,0.001648,66524.0,66523.0,0.155323]
[1729695229311,0.001648,66524.0,66523.0,0.150323]
[1729695229828,0.001648,66524.0,66523.0,0.252123]
[1729695230507,0.001648,66524.0,66523.0,0.247123]
[1729695230741,0.001648,66524.0,66523.0,0.155323]
[1729695230971,0.001648,66524.0,66523.0,0.150323]
[1729695235506,0.001648,66524.0,66523.0,0.33196964]
[1729695235727,0.001648,66524.0,66523.0,0.155323]
[1729695235948,0.001648,66524.0,66523.0,0.160323]
[1729695237797,0.001648,66524.0,66523.0,0.150323]
[1729695239421,0.01286432,66524.0,66523.0,0.150323]
[1729695240760,0.001648,66524.0,66523.0,0.150323]
[1729695241011,0.001648,66524.0,66522.0,0.005]
[1729695241012,0.01289669,66524.0,66522.0,0.005]
[1729695241242,0.01289669,66524.0,66513.0,0.005]
[1729695241243,0.150326,66522.0,66513.0,0.005]
[1729695241551,0.16157769,66521.0,66517.0,0.150337]
[1729695241802,0.01124869,66520.0,66517.0,0.300675]
[1729695242059,0.04489569,66522.0,66519.0,0.150332]
[1729695242321,0.01125165,66521.0,66519.0,0.150332]
[1729695242542,0.01125165,66520.0,66519.0,0.150332]
[1729695243182,0.04489569,66522.0,66519.0,0.150332]
[1729695243403,0.01125873,66520.0,66519.0,0.150332]
[1729695244979,0.01125873,66520.0,66519.0,0.15333829]
[1729695245247,0.01125873,66520.0,66519.0,0.160332]
[1729695245482,0.01125873,66520.0,66519.0,0.240232]
[1729695245703,0.01125873,66520.0,66519.0,0.331532]
[1729695247032,0.01125629,66520.0,66519.0,0.632194]
[1729695247446,0.01125621,66520.0,66519.0,0.632194]
[1729695250700,0.01125621,66520.0,66519.0,0.455994]
[1729695250930,0.01125621,66520.0,66519.0,0.150332]
[1729695251628,0.01125621,66520.0,66519.0,0.155332]
[1729695251849,0.01125621,66520.0,66519.0,0.160332]
[1729695252721,0.01125621,66520.0,66519.0,0.155332]
[1729695252971,0.01125621,66520.0,66519.0,0.160332]
[1729695254550,0.01125769,66520.0,66519.0,0.460996]
[1729695256319,0.01125769,66520.0,66519.0,0.79139981]
[1729695256534,0.01125769,66520.0,66519.0,1.0670489]
[1729695256820,0.001648,66524.0,66523.0,0.342223]
[1729695257035,0.001648,66524.0,66523.0,0.7663759]
[1729695257253,0.001648,66524.0,66523.0,0.7643759]
[1729695257467,0.00142059,66524.0,66523.0,0.7643759]
[1729695258747,0.00142059,66524.0,66523.0,0.7663759]
[1729695258960,0.00142059,66524.0,66523.0,0.61372681]
[1729695261545,0.00142059,66524.0,66523.0,0.59072681]
[1729695262049,0.00142059,66524.0,66523.0,0.357023]
[1729695262464,0.00142059,66524.0,66523.0,0.50752681]
[1729695262882,0.00142059,66524.0,66523.0,0.59082681]
[1729695264446,0.00142059,66524.0,66523.0,0.61382681]
[1729695264649,0.00142059,66524.0,66523.0,0.61582681]
[1729695264857,0.00142059,66524.0,66523.0,0.61382681]
[1729695265706,0.00142059,66524.0,66523.0,0.59082681]
[1729695270427,0.00142059,66524.0,66523.0,0.357023]
[1729695270639,0.00142059,66524.0,66523.0,0.260323]
[1729695271530,0.00142059,66524.0,66523.0,0.37140155]
[1729695271741,0.00142059,66524.0,66523.0,0.260323]
[1729695272443,0.01266605,66524.0,66523.0,0.43393372]
[1729695272867,0.01266605,66524.0,66523.0,0.43475772]
[1729695273709,0.01266605,66524.0,66523.0,0.261147]
[1729695274136,0.01266605,66524.0,66523.0,0.256147]
[1729695274800,0.01266605,66524.0,66523.0,0.261147]
[1729695275615,0.00142059,66524.0,66523.0,0.261147]
[1729695277184,0.01267349,66524.0,66523.0,0.261147]
[1729695278021,0.02392667,66524.0,66523.0,0.261147]
[1729695279795,0.01267349,66524.0,66523.0,0.261147]
[1729695280865,0.02392667,66524.0,66523.0,0.261147]
[1729695281917,0.01267349,66524.0,66523.0,0.261147]
[1729695282126,0.02392877,66524.0,66523.0,0.261147]
[1729695285527,0.02393737,66524.0,66523.0,0.41165081]
[1729695285747,0.01267349,66524.0,66523.0,0.41165081]
[1729695285951,0.02393611,66524.0,66523.0,0.41165081]
[1729695286165,0.02393611,66524.0,66523.0,0.58825081]
[1729695286590,0.02393611,66524.0,66523.0,0.59025081]
[1729695286999,0.01267349,66524.0,66523.0,0.58825081]
[1729695287692,0.01267349,66524.0,66523.0,0.59025081]
[1729695288324,0.01126333,66530.0,66529.0,0.28531]
[1729695288528,0.01126333,66530.0,66529.0,0.60942453]
[1729695288529,0.22547745,66530.0,66529.0,0.60942453]
[1729695288753,0.001648,66532.0,66531.0,0.285305]
[1729695288957,0.001648,66532.0,66531.0,0.61020881]
[1729695290684,0.001648,66532.0,66531.0,0.61395792]
[1729695290908,0.001648,66532.0,66531.0,0.51335792]
[1729695291123,0.001648,66532.0,66531.0,0.41655792]
[1729695291360,0.001648,66532.0,66531.0,0.41080881]
[1729695291809,0.001648,66532.0,66531.0,0.260305]
[1729695294242,0.001648,66532.0,66527.0,0.01]
[1729695294467,0.001648,66532.0,66531.0,0.160305]
[1729695295153,0.04662197,66532.0,66531.0,0.160305]
[1729695295358,0.001648,66532.0,66531.0,0.160305]
[1729695296690,0.06909893,66532.0,66531.0,0.160305]
[1729695299369,0.001648,66532.0,66531.0,0.160305]
[1729695299788,0.16777227,66532.0,66531.0,0.160305]
[1729695300258,0.17901931,66532.0,66531.0,0.160305]
[1729695300709,0.26895388,66532.0,66531.0,0.160305]
[1729695300962,0.26895388,66532.0,66528.0,0.15031]
[1729695301186,0.04500745,66529.0,66528.0,0.150312]
[1729695301406,0.05625449,66529.0,66528.0,0.160312]
[1729695301643,0.05625873,66529.0,66528.0,0.160312]
[1729695302079,0.01124709,66529.0,66528.0,0.160312]
[1729695302502,0.07875827,66529.0,66528.0,0.160312]
[1729695302936,0.07732511,66529.0,66528.0,0.160312]
[1729695303205,0.07733613,66529.0,66528.0,0.160312]
[1729695303607,0.07733429,66529.0,66528.0,0.160312]
[1729695303818,0.07733471,66529.0,66528.0,0.160312]
[1729695304035,0.07733456,66529.0,66528.0,0.160312]
[1729695304259,0.07733456,66529.0,66528.0,0.16331784]
[1729695304260,0.17598171,66529.0,66528.0,0.16331784]
[1729695304505,0.00981393,66529.0,66528.0,0.16331784]
[1729695304723,0.09167752,66532.0,66528.0,0.16331784]
[1729695304724,0.06917014,66532.0,66531.0,0.01]
[1729695304996,0.06916613,66532.0,66531.0,0.42461572]
[1729695305244,0.001648,66532.0,66531.0,0.42661572]
[1729695305480,0.001648,66532.0,66531.0,0.42461572]
[1729695306210,0.001648,66532.0,66531.0,0.57711953]
[1729695306458,0.001648,66532.0,66531.0,0.82981143]
[1729695307823,0.001648,66532.0,66531.0,0.94081274]
[1729695308031,0.22547745,66542.0,66541.0,0.160283]
[1729695308258,0.22547745,66542.0,66541.0,0.60697367]
[1729695308466,0.27048929,66549.0,66541.0,0.60697367]
[1729695308467,0.04501184,66549.0,66548.0,0.160267]
[1729695308691,0.09002952,66552.0,66551.0,0.01]
[1729695308692,0.04501184,66552.0,66551.0,0.01]
[1729695308956,0.04501184,66554.0,66553.0,0.160256]
[1729695309193,0.04501184,66554.0,66551.0,0.32461022]
[1729695309194,0.06746714,66554.0,66551.0,0.30552]
[1729695309463,0.08995619,66552.0,66547.0,0.01]
[1729695309686,0.0674603,66548.0,66547.0,0.005]
[1729695309900,0.25598339,66548.0,66547.0,0.160269]
[1729695310520,0.16603632,66548.0,66547.0,0.160269]
[1729695310725,0.16704707,66549.0,66547.0,0.01]
[1729695310952,0.16704707,66549.0,66548.0,0.150267]
[1729695311186,0.33305484,66549.0,66547.0,0.160269]
[1729695311396,0.0674569,66548.0,66547.0,0.155269]
[1729695311619,0.0674569,66548.0,66547.0,0.160269]
[1729695312859,0.0674569,66548.0,66542.0,0.01]
[1729695313072,0.04496262,66547.0,66543.0,0.300557]
[1729695313311,0.04496262,66547.0,66546.0,0.150271]
[1729695315003,0.05620171,66547.0,66546.0,0.150271]
[1729695315614,0.01123909,66547.0,66546.0,0.15327614]
[1729695316265,0.01123909,66547.0,66546.0,0.15827614]
[1729695316495,0.04496262,66548.0,66547.0,0.150269]
[1729695316950,0.0562019,66548.0,66547.0,0.150269]
[1729695317184,0.06744118,66548.0,66547.0,0.150269]
[1729695317407,0.02247856,66548.0,66547.0,0.150269]
[1729695320413,0.02247861,66548.0,66547.0,0.150269]
[1729695321125,0.02412661,66548.0,66547.0,0.150269]
[1729695321687,0.01288728,66548.0,66547.0,0.150269]
[1729695322333,0.001648,66548.0,66547.0,0.150269]
[1729695322789,0.001648,66548.0,66547.0,0.153274]
[1729695324386,0.001648,66548.0,66547.0,0.150269]
[1729695325103,0.04661062,66548.0,66547.0,0.150269]
[1729695326284,0.001648,66548.0,66547.0,0.150269]
[1729695327495,0.04660162,66548.0,66547.0,0.150269]
[1729695327762,0.04660162,66548.0,66544.0,0.150275]
[1729695328021,0.04495362,66547.0,66544.0,0.150274]
[1729695328293,0.04660162,66548.0,66546.0,0.150271]
[1729695328532,0.04495362,66547.0,66543.0,0.150277]
[1729695328784,0.04495362,66547.0,66545.0,0.150274]
[1729695329029,0.04495362,66547.0,66543.0,0.300553]
[1729695329030,0.04495362,66547.0,66546.0,0.150271]
[1729695329526,0.06743043,66547.0,66546.0,0.150271]
[1729695329761,0.06743043,66547.0,66543.0,0.300553]
[1729695330000,0.06743043,66547.0,66540.0,0.01]
[1729695330001,0.04496431,66546.0,66545.0,0.150273]
[1729695330236,0.04496431,66546.0,66545.0,0.150274]
[1729695330492,0.06743043,66547.0,66546.0,0.150271]
[1729695331216,0.06907843,66548.0,66547.0,0.150269]
[1729695331446,0.001648,66548.0,66547.0,0.150269]
[1729695331930,0.001648,66548.0,66546.0,0.150271]
[1729695332149,0.06745602,66547.0,66546.0,0.150271]
[1729695333103,0.17513486,66547.0,66538.0,0.300579]
[1729695333383,0.06746669,66541.0,66539.0,0.300575]
[1729695333704,0.26344245,66542.0,66532.0,0.000824]
[1729695333705,0.25599407,66540.0,66532.0,0.005824]
[1729695333891,0.28593135,66542.0,66533.0,0.305601]
[1729695333892,0.04498087,66535.0,66533.0,0.305601]
[1729695334136,0.04498087,66535.0,66534.0,0.150299]
[1729695334374,0.04498087,66535.0,66532.0,0.30143]
[1729695334669,0.04498087,66533.0,66532.0,0.151126]
[1729695336474,0.04497511,66533.0,66532.0,0.451733]
[1729695337694,0.06746266,66534.0,66532.0,0.30143]
[1729695337931,0.06746266,66534.0,66533.0,0.150301]
[1729695338475,0.08995022,66535.0,66534.0,0.150299]
[1729695338794,0.08995022,66535.0,66532.0,0.000824]
[1729695338795,0.26343708,66535.0,66532.0,0.000824]
[1729695339005,0.31629756,66534.0,66532.0,0.000824]
[1729695339281,0.27841357,66533.0,66532.0,0.000824]
[1729695339566,0.64720337,66533.0,66532.0,0.000824]
[1729695339824,0.82897846,66533.0,66532.0,0.000824]
[1729695340093,0.69405313,66533.0,66532.0,0.000824]
[1729695340569,0.82887236,66533.0,66532.0,0.000824]
[1729695340829,0.82875738,66533.0,66532.0,0.000824]
[1729695341499,0.78190762,66533.0,66532.0,0.000824]
[1729695341923,0.93241143,66533.0,66532.0,0.000824]
[1729695342138,0.69388997,66533.0,66532.0,0.000824]
[1729695342361,0.69388997,66533.0,66528.0,0.000824]
[1729695342362,0.50199686,66529.0,66528.0,0.000824]
[1729695342598,0.65450067,66529.0,66528.0,0.000824]
[1729695343227,0.86708906,66529.0,66528.0,0.000824]
[1729695343432,0.86508906,66529.0,66528.0,0.000824]
[1729695344253,0.69928333,66529.0,66528.0,0.000824]
[1729695345026,0.70128333,66529.0,66528.0,0.000824]
[1729695345553,0.69928333,66529.0,66528.0,0.000824]
[1729695347420,0.65250067,66529.0,66528.0,0.000824]
[1729695348104,0.69917969,66529.0,66528.0,0.000824]
[1729695348778,0.65250067,66529.0,66528.0,0.000824]
[1729695349011,0.69915618,66529.0,66528.0,0.000824]
[1729695349221,0.8645867,66529.0,66528.0,0.000824]
[1729695349444,0.968435,66529.0,66528.0,0.000824]
[1729695349701,0.968435,66529.0,66511.0,0.22630145]
[1729695349702,0.436021,66524.0,66512.0,0.22547745]
[1729695349866,0.7985912,66524.0,66512.0,0.22547745]
[1729695350075,1.14556492,66524.0,66512.0,0.22547745]
[1729695350281,1.14556492,66524.0,66511.0,0.000824]
[1729695350505,1.24943286,66524.0,66511.0,0.000824]
[1729695350840,1.09892905,66524.0,66511.0,0.000824]
[1729695351241,1.10092905,66524.0,66511.0,0.000824]
[1729695351450,1.10484608,66524.0,66511.0,0.000824]
[1729695352099,1.10684608,66524.0,66511.0,0.000824]
[1729695352307,0.40283486,66512.0,66511.0,0.000824]
[1729695352510,0.55333867,66512.0,66511.0,0.000824]
[1729695353924,0.55333867,66512.0,66500.0,0.150375]
[1729695353925,0.17348686,66507.0,66500.0,0.150375]
[1729695354143,0.17348686,66507.0,66498.0,0.310757]
[1729695354144,0.17348686,66507.0,66501.0,0.150372]
[1729695354346,0.17348686,66507.0,66495.0,0.093]
[1729695354347,0.17348686,66504.0,66496.0,0.0882]
[1729695354541,0.17348686,66504.0,66495.0,0.093]
[1729695354542,0.17348686,66500.0,66495.0,0.093]
[1729695355183,0.17348686,66500.0,66493.0,0.451173]
[1729695355385,0.17348686,66497.0,66494.0,0.150387]
[1729695355618,0.17348686,66497.0,66492.0,0.00085]
[1729695355828,0.17348686,66494.0,66492.0,0.00085]
[1729695358620,0.22547745,66498.0,66492.0,0.00085]
[1729695358845,0.17348686,66497.0,66492.0,0.00085]
[1729695359218,0.17348686,66497.0,66492.0,0.151244]
[1729695360251,0.17348686,66497.0,66492.0,0.00085]
[1729695360689,0.30576,66499.0,66492.0,0.00085]
[1729695360690,0.17348686,66494.0,66492.0,0.00085]
[1729695360860,0.17348686,66497.0,66492.0,0.00085]
[1729695361719,0.17348686,66494.0,66492.0,0.00085]
[1729695362284,0.32387686,66494.0,66492.0,0.00085]
[1729695362485,0.17348686,66494.0,66492.0,0.00085]
[1729695362707,0.17348686,66494.0,66492.0,0.00047595]
[1729695363042,0.150391,66493.0,66492.0,0.00047595]
[1729695364476,0.30089481,66493.0,66492.0,0.00047595]
[1729695369382,0.52637226,66493.0,66492.0,0.00047595]
[1729695369593,0.30089481,66493.0,66492.0,0.00047595]
[1729695370026,0.30589481,66493.0,66492.0,0.00047595]
[1729695370947,0.32389586,66485.0,66484.0,0.00085]
[1729695371175,0.47939967,66485.0,66484.0,0.00085]
[1729695371386,0.59131757,66485.0,66484.0,0.00085]
[1729695371802,0.55509967,66485.0,66484.0,0.00085]
[1729695372673,0.64719967,66485.0,66484.0,0.00085]
[1729695372908,0.82068653,66485.0,66484.0,0.00085]
[1729695373585,0.50239472,66480.0,66479.0,0.16388731]
[1729695373837,0.65289853,66480.0,66479.0,0.16388731]
[1729695374285,0.88510234,66480.0,66479.0,0.16388731]
[1729695374819,0.73459853,66480.0,66479.0,0.16388731]
[1729695375378,0.73459853,66480.0,66465.0,0.000851]
[1729695375379,0.150452,66466.0,66465.0,0.000851]
[1729695375646,0.92452953,66466.0,66465.0,0.000851]
[1729695375924,0.97604099,66466.0,66465.0,0.000851]
[1729695376198,0.260455,66465.0,66464.0,0.00085]
[1729695376437,0.41095881,66465.0,66464.0,0.00085]
[1729695376967,0.41095881,66465.0,66443.0,5.259e-05]
[1729695376968,0.1555,66445.0,66443.0,5.259e-05]
[1729695377393,0.72967753,66445.0,66443.0,5.259e-05]
[1729695377634,0.38270381,66445.0,66443.0,5.259e-05]
[1729695377887,0.155504,66443.0,66442.0,0.16928929]
[1729695378125,0.30600781,66443.0,66442.0,0.16928929]
[1729695379879,0.30600781,66443.0,66425.0,0.000851]
[1729695379880,0.005,66426.0,66425.0,0.000851]
[1729695380111,0.17848686,66426.0,66425.0,0.000851]
[1729695380393,0.005,66434.0,66429.0,0.005]
[1729695380651,0.22547745,66434.0,66429.0,0.005]
[1729695380874,0.22547745,66432.0,66425.0,0.000851]
[1729695381370,0.150527,66434.0,66425.0,0.00386158]
[1729695381632,0.17348686,66427.0,66425.0,0.00386158]
[1729695381913,0.17348686,66427.0,66425.0,0.000851]
[1729695382959,0.17348686,66427.0,66426.0,0.150543]
[1729695383177,0.301034,66438.0,66426.0,0.150543]
[1729695383178,0.17348686,66430.0,66426.0,0.005]
[1729695383396,0.17348686,66430.0,66429.0,0.150536]
[1729695383605,0.22448745,66441.0,66425.0,0.301941]
[1729695383606,0.17348686,66439.0,66433.0,0.005]
[1729695383830,0.300979,66450.0,66435.0,0.005]
[1729695384042,0.23047745,66459.0,66441.0,0.005]
[1729695384043,0.22547745,66449.0,66441.0,0.005]
[1729695384276,0.17348686,66446.0,66443.0,0.301008]
[1729695384526,0.17348686,66443.0,66442.0,0.150506]
[1729695384795,0.22547745,66449.0,66441.0,0.005]
[1729695385218,0.22547745,66449.0,66442.0,0.30402375]
[1729695385423,0.22547745,66449.0,66441.0,0.005]
[1729695385424,0.22547745,66459.0,66446.0,0.005]
[1729695385650,0.22547745,66459.0,66452.0,0.17348686]
[1729695385913,0.22547745,66459.0,66458.0,0.15047]
[1729695386346,0.22547745,66468.0,66462.0,0.15046]
[1729695386586,0.22547745,66468.0,66457.0,0.005]
[1729695386804,0.300914,66464.0,66453.0,0.005]
[1729695387026,0.17348686,66458.0,66446.0,0.0987]
[1729695387302,0.17348686,66458.0,66450.0,0.005]
[1729695387521,0.150471,66458.0,66450.0,0.005]
[1729695387738,0.150471,66458.0,66444.0,0.376203]
[1729695387739,0.17348686,66452.0,66441.0,0.005]
[1729695388160,0.15050381,66457.0,66441.0,0.005]
[1729695388161,0.150487,66451.0,66441.0,0.005]
[1729695388374,0.150478,66455.0,66441.0,0.005]
[1729695388603,0.22547745,66452.0,66445.0,0.301]
[1729695388847,0.22547745,66451.0,66446.0,0.00800965]
[1729695389064,0.22547745,66451.0,66447.0,0.300991]
[1729695389289,0.22547745,66459.0,66448.0,0.300987]
[1729695389507,0.15047,66458.0,66449.0,0.15349941]